[Event "*** Titled Tuesday Blitz"]
[Site "Chess.com"]
[Date "2021.03.09"]
[Round "8"]
[White "kingofthenil"]
[Black "klimkoj"]
[Result "1-0"]
[WhiteElo "2783"]
[BlackElo "2610"]
[TimeControl "180+1"]
[EndTime "11:30:26 PST"]
[Termination "kingofthenil won by resignation"]

1. e4 {[%clk 0:03:00.9]} 1... c5 {[%clk 0:02:56.7]} 2. d3 {[%clk 0:03:01.2]}
2... g6 {[%clk 0:02:52.8]} 3. g3 {[%clk 0:03:02.1]} 3... Bg7 {[%clk 0:02:52.8]}
4. Bg2 {[%clk 0:03:03]} 4... e6 {[%clk 0:02:52.8]} 5. f4 {[%clk 0:03:03.9]} 5...
Ne7 {[%clk 0:02:52.9]} 6. Nf3 {[%clk 0:03:04.8]} 6... O-O {[%clk 0:02:52.8]} 7.
O-O {[%clk 0:03:05.7]} 7... Nbc6 {[%clk 0:02:52.6]} 8. c3 {[%clk 0:03:06.6]}
8... b6 {[%clk 0:02:46]} 9. Be3 {[%clk 0:03:05.5]} 9... Ba6 {[%clk 0:02:45.3]}
10. Re1 {[%clk 0:03:05.6]} 10... d5 {[%clk 0:02:44.3]} 11. e5 {[%clk 0:03:05.6]}
11... d4 {[%clk 0:02:42]} 12. cxd4 {[%clk 0:03:05.5]} 12... cxd4 {[%clk
0:02:41]} 13. Bf2 {[%clk 0:02:27.2]} 13... Nd5 {[%clk 0:01:58.9]} 14. Qa4 {[%clk
0:02:10.6]} 14... Ncb4 {[%clk 0:01:27.3]} 15. a3 {[%clk 0:02:04.9]} 15... Nxd3
{[%clk 0:01:23]} 16. Qxa6 {[%clk 0:02:03.5]} 16... Nxe1 {[%clk 0:01:22.7]} 17.
Nxe1 {[%clk 0:01:46.1]} 17... Rc8 {[%clk 0:01:18.8]} 18. Nd2 {[%clk 0:01:44.9]}
18... Ne3 {[%clk 0:01:15.7]} 19. Qd3 {[%clk 0:01:27.4]} 19... Nxg2 {[%clk
0:01:12.8]} 20. Kxg2 {[%clk 0:01:25.3]} 20... Qd5+ {[%clk 0:01:11.2]} 21. Qe4
{[%clk 0:01:25.5]} 21... Qb5 {[%clk 0:00:50.6]} 22. b4 {[%clk 0:01:24.9]} 22...
Rfd8 {[%clk 0:00:50.1]} 23. Qd3 {[%clk 0:01:16.9]} 23... Qc6+ {[%clk 0:00:48.6]}
24. Kg1 {[%clk 0:01:04.8]} 24... g5 {[%clk 0:00:43.8]} 25. Ne4 {[%clk
0:01:02.6]} 25... gxf4 {[%clk 0:00:42.8]} 26. gxf4 {[%clk 0:01:03.5]} 26... Kh8
{[%clk 0:00:40.9]} 27. Bh4 {[%clk 0:00:57.9]} 27... Rg8 {[%clk 0:00:35.7]} 28.
Kf2 {[%clk 0:00:58.2]} 28... Qd5 {[%clk 0:00:26.5]} 29. Ng5 {[%clk 0:00:55.6]}
1-0

[Event "*** Titled Tuesday Blitz"]
[Site "Chess.com"]
[Date "2021.03.09"]
[Round "8"]
[White "Dyadya81"]
[Black "Caracternin123"]
[Result "1-0"]
[WhiteElo "2733"]
[BlackElo "2586"]
[TimeControl "180+1"]
[EndTime "11:30:27 PST"]
[Termination "Dyadya81 won by resignation"]

1. e4 {[%clk 0:02:59]} 1... e5 {[%clk 0:02:59.7]} 2. Nf3 {[%clk 0:02:58]} 2...
Nf6 {[%clk 0:02:52.4]} 3. Nxe5 {[%clk 0:02:54.6]} 3... d6 {[%clk 0:02:50]} 4.
Nf3 {[%clk 0:02:53.2]} 4... Nxe4 {[%clk 0:02:46.7]} 5. Qe2 {[%clk 0:02:53.5]}
5... Qe7 {[%clk 0:02:46.6]} 6. d3 {[%clk 0:02:52.5]} 6... Nf6 {[%clk 0:02:47.1]}
7. Bg5 {[%clk 0:02:52.7]} 7... Nbd7 {[%clk 0:02:47.3]} 8. Nc3 {[%clk 0:02:52.4]}
8... Qxe2+ {[%clk 0:02:47.6]} 9. Bxe2 {[%clk 0:02:52.3]} 9... h6 {[%clk
0:02:48.5]} 10. Bd2 {[%clk 0:02:51.1]} 10... c6 {[%clk 0:02:48]} 11. O-O-O
{[%clk 0:02:48.2]} 11... d5 {[%clk 0:02:47.4]} 12. Rde1 {[%clk 0:02:48.3]} 12...
Bd6 {[%clk 0:02:47.7]} 13. Bd1+ {[%clk 0:02:46.7]} 13... Kd8 {[%clk 0:02:48]}
14. h3 {[%clk 0:02:43.4]} 14... Kc7 {[%clk 0:02:44.9]} 15. d4 {[%clk 0:02:30.2]}
15... Nb6 {[%clk 0:02:43]} 16. Ne5 {[%clk 0:02:29.5]} 16... Be6 {[%clk
0:02:41.7]} 17. b3 {[%clk 0:02:06.3]} 17... Rhe8 {[%clk 0:02:30.3]} 18. f4
{[%clk 0:01:55.9]} 18... Nfd7 {[%clk 0:02:18.8]} 19. g4 {[%clk 0:01:50.4]} 19...
f6 {[%clk 0:02:16.7]} 20. Nd3 {[%clk 0:01:39]} 20... a5 {[%clk 0:02:09.1]} 21.
a4 {[%clk 0:01:38.1]} 21... Bf7 {[%clk 0:02:06]} 22. f5 {[%clk 0:01:33.4]} 22...
Rxe1 {[%clk 0:01:52.6]} 23. Rxe1 {[%clk 0:01:32.5]} 23... Re8 {[%clk 0:01:53.5]}
24. Ne2 {[%clk 0:01:25.9]} 24... Re4 {[%clk 0:01:46.1]} 25. Bxa5 {[%clk
0:01:18.2]} 25... h5 {[%clk 0:01:31]} 26. Rg1 {[%clk 0:01:05.8]} 26... h4 {[%clk
0:01:16]} 27. Be1 {[%clk 0:00:59.8]} 27... Re3 {[%clk 0:01:13]} 28. Rh1 {[%clk
0:00:51.6]} 28... c5 {[%clk 0:00:56.5]} 29. Bf2 {[%clk 0:00:43]} 29... Rf3
{[%clk 0:00:47.2]} 30. dxc5 {[%clk 0:00:41.8]} 30... Nxc5 {[%clk 0:00:37.5]} 31.
Bxc5 {[%clk 0:00:39.4]} 31... Bxc5 {[%clk 0:00:36.6]} 32. Nxc5 {[%clk
0:00:40.3]} 1-0

[Event "*** Titled Tuesday Blitz"]
[Site "Chess.com"]
[Date "2021.03.09"]
[Round "8"]
[White "ARTHURMOTIVATOR"]
[Black "m_ezat"]
[Result "0-1"]
[WhiteElo "2353"]
[BlackElo "2541"]
[TimeControl "180+1"]
[EndTime "11:30:31 PST"]
[Termination "m_ezat won by resignation"]

1. e4 {[%clk 0:03:00.9]} 1... c6 {[%clk 0:02:58.7]} 2. d4 {[%clk 0:02:59.3]}
2... d5 {[%clk 0:02:57.6]} 3. exd5 {[%clk 0:02:58.3]} 3... cxd5 {[%clk
0:02:56.7]} 4. Bd3 {[%clk 0:02:58.8]} 4... Nc6 {[%clk 0:02:56]} 5. c3 {[%clk
0:02:58.8]} 5... Qc7 {[%clk 0:02:56.6]} 6. h3 {[%clk 0:02:56.6]} 6... g6 {[%clk
0:02:55.5]} 7. Nf3 {[%clk 0:02:56.2]} 7... Nh6 {[%clk 0:02:55.5]} 8. O-O {[%clk
0:02:54.8]} 8... Bf5 {[%clk 0:02:56.1]} 9. Re1 {[%clk 0:02:54.3]} 9... Bxd3
{[%clk 0:02:56.1]} 10. Qxd3 {[%clk 0:02:53.6]} 10... Nf5 {[%clk 0:02:56.7]} 11.
Na3 {[%clk 0:02:51]} 11... Bg7 {[%clk 0:02:55.3]} 12. Nc2 {[%clk 0:02:40.6]}
12... O-O {[%clk 0:02:54.2]} 13. Ne3 {[%clk 0:02:39]} 13... Nxe3 {[%clk
0:02:52.7]} 14. Bxe3 {[%clk 0:02:37.1]} 14... Rfe8 {[%clk 0:02:53.1]} 15. Qd2
{[%clk 0:02:34.4]} 15... a5 {[%clk 0:02:45.5]} 16. Bh6 {[%clk 0:02:29.6]} 16...
a4 {[%clk 0:02:44.2]} 17. Qg5 {[%clk 0:02:08]} 17... e6 {[%clk 0:02:34.2]} 18.
Bxg7 {[%clk 0:01:55.4]} 18... Kxg7 {[%clk 0:02:33.8]} 19. h4 {[%clk 0:01:54.9]}
19... a3 {[%clk 0:02:32.5]} 20. b3 {[%clk 0:01:51.7]} 20... h6 {[%clk 0:02:29]}
21. Qg4 {[%clk 0:01:48.8]} 21... h5 {[%clk 0:02:25.7]} 22. Qg5 {[%clk
0:01:39.1]} 22... Ne7 {[%clk 0:02:20.6]} 23. Rac1 {[%clk 0:01:15.1]} 23... b5
{[%clk 0:02:18.7]} 24. Qd2 {[%clk 0:00:33.1]} 24... Nf5 {[%clk 0:02:15.4]} 25.
g3 {[%clk 0:00:29.1]} 25... Rec8 {[%clk 0:02:13.2]} 26. Ne5 {[%clk 0:00:28.3]}
26... Qb6 {[%clk 0:02:09.5]} 27. Qg5 {[%clk 0:00:25.3]} 27... Qd8 {[%clk
0:01:48.3]} 28. Qf4 {[%clk 0:00:20.7]} 28... Rc7 {[%clk 0:01:45.3]} 29. g4
{[%clk 0:00:19.4]} 29... Qxh4 {[%clk 0:01:42.7]} 30. Nxg6 {[%clk 0:00:13.1]}
30... Qxg4+ {[%clk 0:01:21.4]} 31. Qxg4 {[%clk 0:00:12.6]} 31... hxg4 {[%clk
0:01:22]} 32. Ne5 {[%clk 0:00:11.5]} 32... Rac8 {[%clk 0:01:21.9]} 33. Nxg4
{[%clk 0:00:10.1]} 33... Rxc3 {[%clk 0:01:21.5]} 34. Rxc3 {[%clk 0:00:09.3]}
34... Rxc3 {[%clk 0:01:22]} 35. Re2 {[%clk 0:00:05.2]} 35... Nxd4 {[%clk
0:01:18.8]} 0-1

[Event "*** Titled Tuesday Blitz"]
[Site "Chess.com"]
[Date "2021.03.09"]
[Round "8"]
[White "AsaHoffmann"]
[Black "Artem_Sadovsky"]
[Result "1-0"]
[WhiteElo "2430"]
[BlackElo "2566"]
[TimeControl "180+1"]
[EndTime "11:30:34 PST"]
[Termination "AsaHoffmann won on time"]

1. d4 {[%clk 0:02:58.9]} 1... g6 {[%clk 0:02:59.2]} 2. e4 {[%clk 0:02:58.2]}
2... Bg7 {[%clk 0:02:59.7]} 3. Be3 {[%clk 0:02:58]} 3... d6 {[%clk 0:02:59.7]}
4. Qd2 {[%clk 0:02:57.8]} 4... e5 {[%clk 0:02:59]} 5. Nc3 {[%clk 0:02:55.4]}
5... Nc6 {[%clk 0:02:57.2]} 6. Nge2 {[%clk 0:02:54.5]} 6... f5 {[%clk
0:02:54.2]} 7. f3 {[%clk 0:02:54.2]} 7... Nf6 {[%clk 0:02:52.7]} 8. d5 {[%clk
0:02:50.8]} 8... Ne7 {[%clk 0:02:52.3]} 9. h3 {[%clk 0:02:50.9]} 9... O-O {[%clk
0:02:52.4]} 10. g4 {[%clk 0:02:50.8]} 10... fxe4 {[%clk 0:02:52.9]} 11. fxe4
{[%clk 0:02:50.4]} 11... b5 {[%clk 0:02:53.6]} 12. a3 {[%clk 0:02:48.7]} 12...
a5 {[%clk 0:02:49.9]} 13. Ng3 {[%clk 0:02:46.8]} 13... Ba6 {[%clk 0:02:22.6]}
14. Nxb5 {[%clk 0:02:42.7]} 14... c6 {[%clk 0:02:06.3]} 15. dxc6 {[%clk
0:02:38.7]} 15... d5 {[%clk 0:02:07.2]} 16. Bc5 {[%clk 0:02:21.7]} 16... Nxc6
{[%clk 0:01:52.4]} 17. Bxf8 {[%clk 0:02:03.6]} 17... Bxf8 {[%clk 0:01:53.3]} 18.
exd5 {[%clk 0:02:01.8]} 18... Bxb5 {[%clk 0:01:53.9]} 19. Bxb5 {[%clk
0:01:48.4]} 19... Nd4 {[%clk 0:01:53.8]} 20. Be2 {[%clk 0:01:40.2]} 20... Qxd5
{[%clk 0:01:46.4]} 21. Rd1 {[%clk 0:01:04.2]} 21... Ne4 {[%clk 0:01:36.5]} 22.
Nxe4 {[%clk 0:00:59.7]} 22... Qxe4 {[%clk 0:01:37.4]} 23. Rf1 {[%clk 0:00:59.6]}
23... Bc5 {[%clk 0:00:55.4]} 24. Qd3 {[%clk 0:00:56.5]} 24... Nxc2+ {[%clk
0:00:21.1]} 25. Kd2 {[%clk 0:00:56.2]} 25... Qa4 {[%clk 0:00:08.1]} 26. Qxc2
{[%clk 0:00:53]} 26... Rd8+ {[%clk 0:00:06.5]} 27. Kc1 {[%clk 0:00:51.7]} 27...
Be3+ {[%clk 0:00:01.2]} 28. Kb1 {[%clk 0:00:51.3]} 1-0

[Event "*** Titled Tuesday Blitz"]
[Site "Chess.com"]
[Date "2021.03.09"]
[Round "8"]
[White "suyu28"]
[Black "MuhittinBuker"]
[Result "0-1"]
[WhiteElo "2580"]
[BlackElo "2177"]
[TimeControl "180+1"]
[EndTime "11:30:34 PST"]
[Termination "MuhittinBuker won on time"]

1. d4 {[%clk 0:02:59.5]} 1... Nf6 {[%clk 0:02:58.1]} 2. Bf4 {[%clk 0:02:58.4]}
2... e6 {[%clk 0:02:57.3]} 3. Nf3 {[%clk 0:02:57.4]} 3... d5 {[%clk 0:02:58.2]}
4. e3 {[%clk 0:02:57.1]} 4... Bd6 {[%clk 0:02:58.5]} 5. Bg3 {[%clk 0:02:55.1]}
5... O-O {[%clk 0:02:58.8]} 6. Bd3 {[%clk 0:02:52.2]} 6... c5 {[%clk 0:02:59.2]}
7. c3 {[%clk 0:02:47.9]} 7... Nc6 {[%clk 0:02:59.1]} 8. Nbd2 {[%clk 0:02:47.4]}
8... b6 {[%clk 0:02:52.8]} 9. O-O {[%clk 0:02:45.2]} 9... Bb7 {[%clk 0:02:51.8]}
10. Ne5 {[%clk 0:02:44.7]} 10... Ne7 {[%clk 0:02:50]} 11. Ndf3 {[%clk
0:02:35.6]} 11... Nf5 {[%clk 0:02:49.7]} 12. Bf4 {[%clk 0:02:25.6]} 12... Be7
{[%clk 0:02:49.3]} 13. Qe2 {[%clk 0:02:05.3]} 13... Nd6 {[%clk 0:02:48.6]} 14.
Rad1 {[%clk 0:02:03.8]} 14... Nfe4 {[%clk 0:02:46.6]} 15. Rfe1 {[%clk
0:02:04.1]} 15... f6 {[%clk 0:02:46.3]} 16. Ng4 {[%clk 0:01:55.7]} 16... h5
{[%clk 0:02:45.7]} 17. Nh6+ {[%clk 0:01:49.5]} 17... gxh6 {[%clk 0:02:44.7]} 18.
Bxh6 {[%clk 0:01:50.4]} 18... Rf7 {[%clk 0:02:42.4]} 19. Nh4 {[%clk 0:01:48.4]}
19... Rh7 {[%clk 0:02:09.6]} 20. Qxh5 {[%clk 0:01:46.1]} 20... Qe8 {[%clk
0:02:08.1]} 21. Qg4+ {[%clk 0:01:33.1]} 21... Kh8 {[%clk 0:02:07.5]} 22. Ng6+
{[%clk 0:01:28.1]} 22... Qxg6 {[%clk 0:02:05.2]} 23. Qxg6 {[%clk 0:01:26.3]}
23... Rg8 {[%clk 0:02:04.2]} 24. Qh5 {[%clk 0:01:25.5]} 24... Nf5 {[%clk
0:02:01.7]} 25. Bxe4 {[%clk 0:01:03.8]} 25... dxe4 {[%clk 0:02:00.7]} 26. dxc5
{[%clk 0:01:04.1]} 26... Rxh6 {[%clk 0:01:59.3]} 27. Qe2 {[%clk 0:00:59.8]}
27... Nh4 {[%clk 0:01:47.8]} 28. Kh1 {[%clk 0:00:41.5]} 28... Bxc5 {[%clk
0:01:34.9]} 29. Rd7 {[%clk 0:00:26.2]} 29... Bc8 {[%clk 0:01:23]} 30. Rc7 {[%clk
0:00:21.9]} 30... e5 {[%clk 0:01:21.7]} 31. Rd1 {[%clk 0:00:15.7]} 31... Bg4
{[%clk 0:01:18.4]} 32. Qe1 {[%clk 0:00:14.3]} 32... Nxg2 {[%clk 0:01:16.6]} 33.
Qf1 {[%clk 0:00:04.7]} 33... Bf3 {[%clk 0:01:14.2]} 0-1

[Event "*** Titled Tuesday Blitz"]
[Site "Chess.com"]
[Date "2021.03.09"]
[Round "8"]
[White "jaskol95"]
[Black "grandcoach"]
[Result "1-0"]
[WhiteElo "2433"]
[BlackElo "2255"]
[TimeControl "180+1"]
[EndTime "11:30:35 PST"]
[Termination "jaskol95 won by resignation"]

1. d4 {[%clk 0:03:00.9]} 1... Nf6 {[%clk 0:02:59.2]} 2. Bf4 {[%clk 0:03:00.4]}
2... c5 {[%clk 0:02:58.3]} 3. d5 {[%clk 0:02:56.2]} 3... Qb6 {[%clk 0:02:57.5]}
4. Nc3 {[%clk 0:02:56]} 4... Qxb2 {[%clk 0:02:56.2]} 5. Bd2 {[%clk 0:02:56.6]}
5... Na6 {[%clk 0:02:30.3]} 6. Rb1 {[%clk 0:02:25.5]} 6... Qa3 {[%clk
0:02:29.6]} 7. e4 {[%clk 0:02:22.2]} 7... d6 {[%clk 0:02:28.4]} 8. Bb5+ {[%clk
0:02:09.3]} 8... Bd7 {[%clk 0:02:26.9]} 9. Nf3 {[%clk 0:02:00.1]} 9... c4 {[%clk
0:01:59.3]} 10. Bxd7+ {[%clk 0:01:50.9]} 10... Nxd7 {[%clk 0:01:57.6]} 11. Rxb7
{[%clk 0:01:42.8]} 11... Nac5 {[%clk 0:01:54.3]} 12. Rb1 {[%clk 0:01:37.6]}
12... Rc8 {[%clk 0:01:39.6]} 13. O-O {[%clk 0:01:34.6]} 13... g6 {[%clk
0:01:39.7]} 14. Nb5 {[%clk 0:01:14.3]} 14... Qa6 {[%clk 0:01:38.1]} 15. Bc3
{[%clk 0:01:07.6]} 15... Rg8 {[%clk 0:01:27.7]} 16. Re1 {[%clk 0:01:03.8]} 16...
Bg7 {[%clk 0:01:26.6]} 17. e5 {[%clk 0:00:55.5]} 17... dxe5 {[%clk 0:01:12.2]}
18. d6 {[%clk 0:00:52.1]} 18... e4 {[%clk 0:01:03.8]} 19. Bxg7 {[%clk
0:00:46.4]} 19... Rxg7 {[%clk 0:01:00.2]} 20. Nc7+ {[%clk 0:00:43.3]} 20... Rxc7
{[%clk 0:00:58.9]} 21. dxc7 {[%clk 0:00:43]} 21... Qc8 {[%clk 0:00:41.6]} 22.
Qd4 {[%clk 0:00:38.1]} 22... e5 {[%clk 0:00:32.9]} 23. Nxe5 {[%clk 0:00:35.6]}
23... f5 {[%clk 0:00:28.3]} 24. Nxd7 {[%clk 0:00:28]} 24... Nxd7 {[%clk
0:00:28.1]} 25. Qxg7 {[%clk 0:00:24.5]} 1-0

[Event "*** Titled Tuesday Blitz"]
[Site "Chess.com"]
[Date "2021.03.09"]
[Round "8"]
[White "eguindy"]
[Black "PushingpawnsNYC"]
[Result "1-0"]
[WhiteElo "2452"]
[BlackElo "2296"]
[TimeControl "180+1"]
[EndTime "11:30:36 PST"]
[Termination "eguindy won by resignation"]

1. e3 {[%clk 0:02:15.5]} 1... Nf6 {[%clk 0:02:57.5]} 2. Nf3 {[%clk 0:02:15]}
2... g6 {[%clk 0:02:58.2]} 3. b3 {[%clk 0:02:14.4]} 3... Bg7 {[%clk 0:02:59]} 4.
Bb2 {[%clk 0:02:14.8]} 4... O-O {[%clk 0:02:59.8]} 5. g3 {[%clk 0:02:13.7]} 5...
d6 {[%clk 0:03:00.5]} 6. Bg2 {[%clk 0:02:13.1]} 6... c6 {[%clk 0:03:01.2]} 7. d3
{[%clk 0:02:12.2]} 7... Bg4 {[%clk 0:02:58.5]} 8. Nbd2 {[%clk 0:02:12.3]} 8...
Qd7 {[%clk 0:02:58.3]} 9. h3 {[%clk 0:02:12.7]} 9... Bxf3 {[%clk 0:02:58.6]} 10.
Nxf3 {[%clk 0:02:11.2]} 10... e5 {[%clk 0:02:59.2]} 11. O-O {[%clk 0:02:09.8]}
11... Qe7 {[%clk 0:02:55.7]} 12. c4 {[%clk 0:02:07.6]} 12... Nbd7 {[%clk
0:02:55.6]} 13. e4 {[%clk 0:02:06.8]} 13... Nh5 {[%clk 0:02:55.2]} 14. d4 {[%clk
0:02:05.8]} 14... Rad8 {[%clk 0:02:44.2]} 15. Re1 {[%clk 0:02:04.6]} 15... Bh6
{[%clk 0:02:23.9]} 16. Qc2 {[%clk 0:02:03.4]} 16... Ng7 {[%clk 0:02:23.3]} 17.
Rad1 {[%clk 0:01:59.3]} 17... f6 {[%clk 0:02:18.1]} 18. h4 {[%clk 0:01:56]}
18... Ne6 {[%clk 0:02:16.9]} 19. d5 {[%clk 0:01:54.4]} 19... cxd5 {[%clk
0:02:15.5]} 20. exd5 {[%clk 0:01:53.7]} 20... Ng7 {[%clk 0:02:12.9]} 21. b4
{[%clk 0:01:50.8]} 21... f5 {[%clk 0:02:08]} 22. c5 {[%clk 0:01:49.9]} 22... e4
{[%clk 0:01:57]} 23. Nd4 {[%clk 0:01:36]} 23... Ne5 {[%clk 0:01:53.4]} 24. c6
{[%clk 0:01:32.9]} 24... b6 {[%clk 0:01:41.9]} 25. b5 {[%clk 0:01:31.7]} 25...
Rf6 {[%clk 0:01:28.7]} 26. Qb3 {[%clk 0:01:30.6]} 26... g5 {[%clk 0:01:24.5]}
27. hxg5 {[%clk 0:01:29.4]} 27... Bxg5 {[%clk 0:01:25.2]} 28. f4 {[%clk
0:01:29.2]} 28... exf3 {[%clk 0:01:22.7]} 29. Nxf3 {[%clk 0:01:28.6]} 29... Rg6
{[%clk 0:01:16.5]} 30. Nxe5 {[%clk 0:01:26.8]} 30... dxe5 {[%clk 0:01:12.3]} 31.
d6+ {[%clk 0:01:26.4]} 31... Qf7 {[%clk 0:01:11.7]} 32. Bd5 {[%clk 0:01:25.5]}
32... Ne6 {[%clk 0:01:10.4]} 33. Rxe5 {[%clk 0:01:23.5]} 33... Rxd6 {[%clk
0:01:10.2]} 34. Rde1 {[%clk 0:01:17.7]} 34... f4 {[%clk 0:00:56]} 35. Rxe6
{[%clk 0:01:14.4]} 35... Rxd5 {[%clk 0:00:51.8]} 36. Qxd5 {[%clk 0:01:11.3]}
36... Kf8 {[%clk 0:00:26.1]} 37. Re8+ {[%clk 0:01:02.5]} 37... Qxe8 {[%clk
0:00:26.2]} 38. Rxe8+ {[%clk 0:01:02.3]} 38... Kxe8 {[%clk 0:00:26]} 39. c7
{[%clk 0:01:02.7]} 1-0

[Event "*** Titled Tuesday Blitz"]
[Site "Chess.com"]
[Date "2021.03.09"]
[Round "8"]
[White "Brave_spirit12"]
[Black "RobertoJBM"]
[Result "0-1"]
[WhiteElo "2581"]
[BlackElo "2725"]
[TimeControl "180+1"]
[EndTime "11:30:39 PST"]
[Termination "RobertoJBM won by resignation"]

1. e4 {[%clk 0:03:00.9]} 1... c6 {[%clk 0:02:59.6]} 2. Nc3 {[%clk 0:03:00.8]}
2... d5 {[%clk 0:03:00.5]} 3. Nf3 {[%clk 0:03:01.6]} 3... dxe4 {[%clk
0:02:58.3]} 4. Nxe4 {[%clk 0:03:02.5]} 4... Bg4 {[%clk 0:02:58.1]} 5. h3 {[%clk
0:03:00.3]} 5... Bxf3 {[%clk 0:02:57.7]} 6. Qxf3 {[%clk 0:02:59.9]} 6... Nd7
{[%clk 0:02:58.6]} 7. Bc4 {[%clk 0:02:56.9]} 7... Ne5 {[%clk 0:02:58.7]} 8. Qb3
{[%clk 0:02:52.3]} 8... Nxc4 {[%clk 0:02:58.5]} 9. Qxc4 {[%clk 0:02:53.2]} 9...
Qd5 {[%clk 0:02:58.3]} 10. Qe2 {[%clk 0:02:51.9]} 10... e6 {[%clk 0:02:58.6]}
11. O-O {[%clk 0:02:51]} 11... Be7 {[%clk 0:02:58.7]} 12. c4 {[%clk 0:02:50.7]}
12... Qd7 {[%clk 0:02:58.2]} 13. b3 {[%clk 0:02:50.8]} 13... Nf6 {[%clk
0:02:58.7]} 14. Bb2 {[%clk 0:02:51.2]} 14... Nxe4 {[%clk 0:02:58.9]} 15. Qxe4
{[%clk 0:02:52.1]} 15... Bf6 {[%clk 0:02:59.6]} 16. Bxf6 {[%clk 0:02:51.9]}
16... gxf6 {[%clk 0:03:00.5]} 17. d4 {[%clk 0:02:52.5]} 17... O-O-O {[%clk
0:03:00.1]} 18. Rad1 {[%clk 0:02:52.6]} 18... f5 {[%clk 0:02:59.6]} 19. Qe5
{[%clk 0:02:52.5]} 19... Rhg8 {[%clk 0:02:58.2]} 20. Rfe1 {[%clk 0:02:52.3]}
20... Qc7 {[%clk 0:02:56.1]} 21. Qe2 {[%clk 0:02:49]} 21... Kb8 {[%clk
0:02:40.7]} 22. a4 {[%clk 0:02:47.2]} 22... Rg5 {[%clk 0:02:38.2]} 23. Rd3
{[%clk 0:02:30.6]} 23... Rdg8 {[%clk 0:02:28.9]} 24. g3 {[%clk 0:02:28.5]} 24...
f4 {[%clk 0:02:25.4]} 25. g4 {[%clk 0:02:26.4]} 25... h5 {[%clk 0:02:25.1]} 26.
f3 {[%clk 0:02:26.2]} 26... hxg4 {[%clk 0:02:25]} 27. hxg4 {[%clk 0:02:24.1]}
27... a6 {[%clk 0:02:19.4]} 28. Kf2 {[%clk 0:02:16.6]} 28... f5 {[%clk
0:02:14.7]} 29. Rg1 {[%clk 0:02:01.2]} 29... fxg4 {[%clk 0:02:11.6]} 30. Rxg4
{[%clk 0:01:57.3]} 30... Rxg4 {[%clk 0:02:11.5]} 31. fxg4 {[%clk 0:01:58.2]}
31... Qh7 {[%clk 0:02:05.7]} 32. Qe5+ {[%clk 0:01:50.1]} 32... Ka8 {[%clk
0:02:04.1]} 33. Rf3 {[%clk 0:01:39.1]} 33... Qh2+ {[%clk 0:01:49.4]} 34. Ke1
{[%clk 0:01:27.8]} 34... Rxg4 {[%clk 0:01:50.3]} 35. Qf6 {[%clk 0:00:58.8]}
35... Rg1+ {[%clk 0:01:47.1]} 36. Rf1 {[%clk 0:00:57.7]} 36... Qg3+ {[%clk
0:01:45.9]} 37. Kd2 {[%clk 0:00:55.8]} 37... Qe3+ {[%clk 0:01:37.8]} 38. Kc2
{[%clk 0:00:54]} 38... Rg2+ {[%clk 0:01:30.8]} 39. Rf2 {[%clk 0:00:51.6]} 39...
Rxf2+ {[%clk 0:00:35.3]} 40. Kd1 {[%clk 0:00:49.3]} 0-1

[Event "*** Titled Tuesday Blitz"]
[Site "Chess.com"]
[Date "2021.03.09"]
[Round "8"]
[White "Alex-11211"]
[Black "azikom"]
[Result "0-1"]
[WhiteElo "2425"]
[BlackElo "2644"]
[TimeControl "180+1"]
[EndTime "11:30:39 PST"]
[Termination "azikom won by checkmate"]

1. e4 {[%clk 0:01:54.9]} 1... c5 {[%clk 0:02:59.2]} 2. Nf3 {[%clk 0:01:54.4]}
2... d6 {[%clk 0:02:59.6]} 3. Bb5+ {[%clk 0:01:54.2]} 3... Nd7 {[%clk
0:02:58.9]} 4. O-O {[%clk 0:01:53.7]} 4... a6 {[%clk 0:02:58.9]} 5. Bd3 {[%clk
0:01:53.8]} 5... b5 {[%clk 0:02:57.9]} 6. c4 {[%clk 0:01:52.8]} 6... bxc4 {[%clk
0:02:57.3]} 7. Bxc4 {[%clk 0:01:52.8]} 7... e6 {[%clk 0:02:58]} 8. Nc3 {[%clk
0:01:51.9]} 8... Ngf6 {[%clk 0:02:56.8]} 9. d4 {[%clk 0:01:51.2]} 9... cxd4
{[%clk 0:02:56.2]} 10. Nxd4 {[%clk 0:01:49.1]} 10... Nc5 {[%clk 0:02:49.2]} 11.
Re1 {[%clk 0:01:46.5]} 11... Be7 {[%clk 0:02:47.7]} 12. b4 {[%clk 0:01:40.8]}
12... Ncd7 {[%clk 0:02:43.2]} 13. Bxe6 {[%clk 0:01:37.7]} 13... fxe6 {[%clk
0:02:40]} 14. Nxe6 {[%clk 0:01:38.6]} 14... Qb6 {[%clk 0:02:40]} 15. Nxg7+
{[%clk 0:01:28.8]} 15... Kf7 {[%clk 0:02:39.9]} 16. Nf5 {[%clk 0:01:27.9]} 16...
Ne5 {[%clk 0:02:35.1]} 17. Bg5 {[%clk 0:00:43]} 17... Bxf5 {[%clk 0:02:33.4]}
18. exf5 {[%clk 0:00:41.3]} 18... Qb7 {[%clk 0:01:45]} 19. Qb3+ {[%clk
0:00:32.8]} 19... Kg7 {[%clk 0:01:43.3]} 20. h3 {[%clk 0:00:16.8]} 20... Rae8
{[%clk 0:01:41.8]} 21. f4 {[%clk 0:00:15.7]} 21... Nf7 {[%clk 0:01:38.4]} 22.
Re6 {[%clk 0:00:13.5]} 22... Bd8 {[%clk 0:01:36.3]} 23. Rae1 {[%clk 0:00:13.1]}
23... Rxe6 {[%clk 0:01:35.7]} 24. fxe6 {[%clk 0:00:14]} 24... Nxg5 {[%clk
0:01:35]} 25. fxg5 {[%clk 0:00:14.6]} 25... Qb6+ {[%clk 0:01:24.5]} 26. Kh2
{[%clk 0:00:12.1]} 26... Ne8 {[%clk 0:01:23]} 27. Nd5 {[%clk 0:00:12.1]} 27...
Qd4 {[%clk 0:01:19.7]} 28. e7 {[%clk 0:00:11.4]} 28... Bb6 {[%clk 0:01:18.6]}
29. Qf3 {[%clk 0:00:09.1]} 29... Qf2 {[%clk 0:01:06.5]} 30. Qe4 {[%clk
0:00:06.4]} 30... Bd4 {[%clk 0:01:04.8]} 31. Kh1 {[%clk 0:00:03.4]} 31... Be5
{[%clk 0:01:04.2]} 32. Re2 {[%clk 0:00:02.4]} 32... Qf1# {[%clk 0:01:03.5]} 0-1